[Event "Titled Tuesday Blitz August 15 Early 2023"]
[White "Fajdetic, Hrvoje"]
[Black "Keleberda, Tymur"]
[WhiteFideId "14501945"]
[BlackFideId "14174294"]
[WhiteElo "2253"]
[BlackElo "2568"]
[Result "0-1"]
[Round "1"]
[TimeControl "180+1"]
[Date "2023.08.15"]
[WhiteClock "0:00:00"]
[BlackClock "0:01:16"]
[Board "179"]

1. d4 {[%clk 0:02:59]}  Nf6 {[%clk 0:02:59]} 2. Bf4 {[%clk 0:02:59]}  d5 {[%clk 0:02:59]} 3. e3 {[%clk 0:03:00]}  e6 {[%clk 0:02:59]} 4. Nf3 {[%clk 0:03:00]}  Bd6 {[%clk 0:02:58]} 5. Bg3 {[%clk 0:02:58]}  b6 {[%clk 0:02:57]} 6. Nbd2 {[%clk 0:02:55]}  c5 {[%clk 0:02:56]} 7. c3 {[%clk 0:02:52]}  Nc6 {[%clk 0:02:52]} 8. Bb5 {[%clk 0:02:51]}  Bb7 {[%clk 0:02:52]} 9. Qa4 {[%clk 0:02:51]}  Rc8 {[%clk 0:02:51]} 10. Qxa7 {[%clk 0:02:47]}  Rc7 {[%clk 0:02:47]} 11. Bxd6 {[%clk 0:02:33]}  Qxd6 {[%clk 0:02:48]} 12. Qxb6 {[%clk 0:02:24]}  cxd4 {[%clk 0:02:44]} 13. exd4 {[%clk 0:02:13]}  O-O {[%clk 0:02:43]} 14. Ne5 {[%clk 0:02:09]}  Rd8 {[%clk 0:02:33]} 15. Bxc6 {[%clk 0:02:08]}  Bxc6 {[%clk 0:02:33]} 16. Nxc6 {[%clk 0:02:03]}  Rxc6 {[%clk 0:02:34]} 17. Qb3 {[%clk 0:02:03]}  Rb6 {[%clk 0:02:34]} 18. Qc2 {[%clk 0:02:02]}  e5 {[%clk 0:02:30]} 19. O-O {[%clk 0:01:59]}  e4 {[%clk 0:02:31]} 20. Rfe1 {[%clk 0:01:58]}  h5 {[%clk 0:02:30]} 21. Nf1 {[%clk 0:01:58]}  h4 {[%clk 0:02:27]} 22. h3 {[%clk 0:01:58]}  Nh5 {[%clk 0:02:25]} 23. a4 {[%clk 0:01:56]}  Nf4 {[%clk 0:02:23]} 24. Kh1 {[%clk 0:01:45]}  Qg6 {[%clk 0:02:17]} 25. Ne3 {[%clk 0:01:45]}  f5 {[%clk 0:02:12]} 26. a5 {[%clk 0:01:43]}  Rc6 {[%clk 0:02:11]} 27. b4 {[%clk 0:01:42]}  Nd3 {[%clk 0:02:11]} 28. Nxd5 {[%clk 0:01:33]}  Rxd5 {[%clk 0:02:03]} 29. Qb3 {[%clk 0:01:28]}  Qf7 {[%clk 0:01:33]} 30. Re2 {[%clk 0:01:23]}  Rb5 {[%clk 0:01:23]} 31. Qxf7+ {[%clk 0:01:11]}  Kxf7 {[%clk 0:01:24]} 32. a6 {[%clk 0:01:12]}  Rc8 {[%clk 0:01:24]} 33. a7 {[%clk 0:00:40]}  Ra8 {[%clk 0:01:24]} 34. Kg1 {[%clk 0:00:33]}  Ke6 {[%clk 0:01:23]} 35. Ra6+ {[%clk 0:00:31]}  Kd5 {[%clk 0:01:21]} 36. Rea2 {[%clk 0:00:26]}  Kc4 {[%clk 0:01:19]} 37. Rc6+ {[%clk 0:00:20]}  Kb3 {[%clk 0:01:19]} 38. Raa6 {[%clk 0:00:18]}  Rb7 {[%clk 0:01:19]} 39. b5 {[%clk 0:00:12]}  Raxa7 {[%clk 0:01:16]} 40. Rxa7 {[%clk 0:00:03]}  Rxa7 {[%clk 0:01:17]} 41. c4 {[%clk 0:00:04]}  f4 {[%clk 0:01:16]} 42. b6 {[%clk 0:00:04]}  Ra1+ {[%clk 0:01:16]} 43. Kh2 {[%clk 0:00:00]}  Nxf2 {[%clk 0:01:16]} 0-1


[Site "https://www.chess.com"]

[Event "Titled Tuesday Blitz August 15 Early 2023"]
[White "Nguyen Hong Anh"]
[Black "ChainedDowntohell"]
[WhiteFideId "12406732"]
[WhiteElo "2568"]
[BlackElo "2250"]
[Result "0-1"]
[Round "1"]
[TimeControl "180+1"]
[Date "2023.08.15"]
[WhiteClock "0:00:05"]
[BlackClock "0:00:05"]
[Board "180"]

1. d4 {[%clk 0:03:00]}  Nf6 {[%clk 0:02:55]} 2. c4 {[%clk 0:02:59]}  b6 {[%clk 0:02:55]} 3. Nf3 {[%clk 0:02:58]}  Bb7 {[%clk 0:02:54]} 4. g3 {[%clk 0:02:57]}  g6 {[%clk 0:02:51]} 5. Bg2 {[%clk 0:02:57]}  Bg7 {[%clk 0:02:51]} 6. O-O {[%clk 0:02:57]}  e6 {[%clk 0:02:49]} 7. Nc3 {[%clk 0:02:56]}  Ne4 {[%clk 0:02:49]} 8. Nxe4 {[%clk 0:02:52]}  Bxe4 {[%clk 0:02:50]} 9. Bf4 {[%clk 0:02:51]}  Qc8 {[%clk 0:02:43]} 10. Qd2 {[%clk 0:02:47]}  Qb7 {[%clk 0:02:29]} 11. Rfd1 {[%clk 0:02:46]}  O-O {[%clk 0:02:20]} 12. d5 {[%clk 0:02:43]}  d6 {[%clk 0:02:13]} 13. Bh6 {[%clk 0:02:34]}  Bxf3 {[%clk 0:01:53]} 14. Bxf3 {[%clk 0:02:31]}  e5 {[%clk 0:01:51]} 15. e4 {[%clk 0:02:19]}  Nd7 {[%clk 0:01:47]} 16. b4 {[%clk 0:02:16]}  a5 {[%clk 0:01:42]} 17. a3 {[%clk 0:02:14]}  f5 {[%clk 0:01:38]} 18. exf5 {[%clk 0:02:12]}  axb4 {[%clk 0:00:40]} 19. axb4 {[%clk 0:02:10]}  Rxa1 {[%clk 0:00:40]} 20. Rxa1 {[%clk 0:02:09]}  Rf7 {[%clk 0:00:31]} 21. Bxg7 {[%clk 0:01:35]}  Kxg7 {[%clk 0:00:30]} 22. fxg6 {[%clk 0:01:04]}  Rxf3 {[%clk 0:00:29]} 23. gxh7 {[%clk 0:01:04]}  Rf7 {[%clk 0:00:22]} 24. Qg5+ {[%clk 0:00:39]}  Kxh7 {[%clk 0:00:20]} 25. Qh5+ {[%clk 0:00:37]}  Kg7 {[%clk 0:00:20]} 26. Qg5+ {[%clk 0:00:35]}  Kh8 {[%clk 0:00:18]} 27. h4 {[%clk 0:00:28]}  Qb8 {[%clk 0:00:16]} 28. Qh5+ {[%clk 0:00:25]}  Kg8 {[%clk 0:00:16]} 29. Qg6+ {[%clk 0:00:21]}  Rg7 {[%clk 0:00:11]} 30. Qe6+ {[%clk 0:00:20]}  Kh7 {[%clk 0:00:10]} 31. Ra3 {[%clk 0:00:20]}  Qg8 {[%clk 0:00:06]} 32. Qf5+ {[%clk 0:00:19]}  Kh8 {[%clk 0:00:05]} 33. Rf3 {[%clk 0:00:19]}  Qh7 {[%clk 0:00:03]} 34. Qe6 {[%clk 0:00:19]}  Qg6 {[%clk 0:00:02]} 35. Qh3 {[%clk 0:00:17]}  Qg4 {[%clk 0:00:01]} 36. Qg2 {[%clk 0:00:16]}  Kh7 {[%clk 0:00:01]} 37. h5 {[%clk 0:00:14]}  e4 {[%clk 0:00:02]} 38. Rf4 {[%clk 0:00:14]}  Qxf4 {[%clk 0:00:02]} 39. gxf4 {[%clk 0:00:13]}  Rxg2+ {[%clk 0:00:03]} 40. Kxg2 {[%clk 0:00:13]}  Kh6 {[%clk 0:00:02]} 41. f3 {[%clk 0:00:13]}  exf3+ {[%clk 0:00:01]} 42. Kxf3 {[%clk 0:00:13]}  Kxh5 {[%clk 0:00:02]} 43. Ke4 {[%clk 0:00:12]}  Kg4 {[%clk 0:00:03]} 44. f5 {[%clk 0:00:09]}  Nf6+ {[%clk 0:00:03]} 45. Kd4 {[%clk 0:00:09]}  Kxf5 {[%clk 0:00:03]} 46. c5 {[%clk 0:00:09]}  bxc5+ {[%clk 0:00:03]} 47. bxc5 {[%clk 0:00:09]}  Kf4 {[%clk 0:00:03]} 48. cxd6 {[%clk 0:00:09]}  cxd6 {[%clk 0:00:04]} 49. Kc4 {[%clk 0:00:09]}  Ke5 {[%clk 0:00:04]} 50. Kb5 {[%clk 0:00:05]}  Nxd5 {[%clk 0:00:05]} 0-1


[Site "https://www.chess.com"]

[Event "Titled Tuesday Blitz August 15 Early 2023"]
[White "Principe, Alexander"]
[Black "agvania123"]
[WhiteFideId "3804542"]
[WhiteElo "2567"]
[BlackElo "2248"]
[Result "1-0"]
[Round "1"]
[TimeControl "180+1"]
[Date "2023.08.15"]
[WhiteClock "0:00:29"]
[BlackClock "0:00:17"]
[Board "182"]

1. e4 {[%clk 0:02:45]}  e5 {[%clk 0:02:58]} 2. Nf3 {[%clk 0:02:45]}  Nf6 {[%clk 0:02:58]} 3. Nxe5 {[%clk 0:02:45]}  d6 {[%clk 0:02:58]} 4. Nf3 {[%clk 0:02:45]}  Nxe4 {[%clk 0:02:59]} 5. Nc3 {[%clk 0:02:45]}  Nxc3 {[%clk 0:02:58]} 6. dxc3 {[%clk 0:02:46]}  Be7 {[%clk 0:02:59]} 7. Be3 {[%clk 0:02:46]}  O-O {[%clk 0:03:00]} 8. Qd2 {[%clk 0:02:46]}  Nc6 {[%clk 0:03:00]} 9. Bd3 {[%clk 0:02:47]}  Be6 {[%clk 0:03:00]} 10. O-O-O {[%clk 0:02:47]}  a5 {[%clk 0:02:53]} 11. Kb1 {[%clk 0:02:47]}  Ne5 {[%clk 0:02:51]} 12. Nxe5 {[%clk 0:02:32]}  dxe5 {[%clk 0:02:52]} 13. Be4 {[%clk 0:02:32]}  c6 {[%clk 0:02:27]} 14. Qxd8 {[%clk 0:02:31]}  Rfxd8 {[%clk 0:02:28]} 15. Bb6 {[%clk 0:02:31]}  Rxd1+ {[%clk 0:02:27]} 16. Rxd1 {[%clk 0:02:32]}  f5 {[%clk 0:02:23]} 17. Bf3 {[%clk 0:02:29]}  e4 {[%clk 0:02:19]} 18. Be2 {[%clk 0:02:29]}  Kf7 {[%clk 0:02:12]} 19. c4 {[%clk 0:02:24]}  c5 {[%clk 0:01:57]} 20. f3 {[%clk 0:02:21]}  Ra6 {[%clk 0:01:55]} 21. Bc7 {[%clk 0:02:19]}  exf3 {[%clk 0:01:51]} 22. gxf3 {[%clk 0:02:19]}  g5 {[%clk 0:01:44]} 23. a4 {[%clk 0:02:11]}  h5 {[%clk 0:01:39]} 24. b3 {[%clk 0:02:10]}  Bf6 {[%clk 0:01:21]} 25. Bf1 {[%clk 0:01:47]}  h4 {[%clk 0:01:13]} 26. Bg2 {[%clk 0:01:46]}  Bd4 {[%clk 0:00:52]} 27. Bd8 {[%clk 0:01:37]}  Ra8 {[%clk 0:00:45]} 28. Bxg5 {[%clk 0:01:34]}  Rg8 {[%clk 0:00:42]} 29. f4 {[%clk 0:01:35]}  Bf6 {[%clk 0:00:40]} 30. Bxb7 {[%clk 0:01:31]}  Bxg5 {[%clk 0:00:40]} 31. fxg5 {[%clk 0:01:31]}  Rxg5 {[%clk 0:00:40]} 32. Kb2 {[%clk 0:01:22]}  f4 {[%clk 0:00:40]} 33. Kc3 {[%clk 0:01:20]}  Re5 {[%clk 0:00:34]} 34. Rf1 {[%clk 0:01:18]}  Re3+ {[%clk 0:00:33]} 35. Kd2 {[%clk 0:01:18]}  Rh3 {[%clk 0:00:30]} 36. Rxf4+ {[%clk 0:01:17]}  Ke7 {[%clk 0:00:31]} 37. Rf2 {[%clk 0:01:17]}  Kd6 {[%clk 0:00:30]} 38. Be4 {[%clk 0:00:46]}  Ke5 {[%clk 0:00:28]} 39. Bd3 {[%clk 0:00:41]}  Bd7 {[%clk 0:00:22]} 40. c3 {[%clk 0:00:40]}  Bg4 {[%clk 0:00:18]} 41. Bf1 {[%clk 0:00:39]}  Rf3 {[%clk 0:00:18]} 42. Rxf3 {[%clk 0:00:39]}  Bxf3 {[%clk 0:00:19]} 43. Ke3 {[%clk 0:00:38]}  Bd1 {[%clk 0:00:19]} 44. b4 {[%clk 0:00:37]}  cxb4 {[%clk 0:00:20]} 45. cxb4 {[%clk 0:00:38]}  axb4 {[%clk 0:00:20]} 46. a5 {[%clk 0:00:38]}  Ba4 {[%clk 0:00:20]} 47. a6 {[%clk 0:00:34]}  Bc6 {[%clk 0:00:19]} 48. Bd3 {[%clk 0:00:30]}  Kd6 {[%clk 0:00:19]} 49. Kd4 {[%clk 0:00:29]}  Kc7 {[%clk 0:00:19]} 50. c5 {[%clk 0:00:29]}  b3 {[%clk 0:00:18]} 51. Kc3 {[%clk 0:00:29]}  Kb8 {[%clk 0:00:19]} 52. Kxb3 {[%clk 0:00:29]}  Ka7 {[%clk 0:00:19]} 53. Kc3 {[%clk 0:00:29]}  h3 {[%clk 0:00:20]} 54. Kd4 {[%clk 0:00:29]}  Bg2 {[%clk 0:00:20]} 55. Ke5 {[%clk 0:00:29]}  Bc6 {[%clk 0:00:19]} 56. Kd6 {[%clk 0:00:29]}  Bg2 {[%clk 0:00:19]} 57. Bb5 {[%clk 0:00:29]}  Ba8 {[%clk 0:00:18]} 58. c6 {[%clk 0:00:29]}  Kb8 {[%clk 0:00:19]} 59. c7+ {[%clk 0:00:29]}  Ka7 {[%clk 0:00:18]} 60. c8=Q {[%clk 0:00:29]}  Bc6 {[%clk 0:00:17]} 61. Qc7+ {[%clk 0:00:29]}  Ka8 {[%clk 0:00:17]} 62. Bxc6# {[%clk 0:00:29]} 1-0


[Site "https://www.chess.com"]

[Event "Titled Tuesday Blitz August 15 Early 2023"]
[White "Przybylski, Wojciech"]
[Black "Schachpanda_Youtube"]
[WhiteFideId "1117599"]
[WhiteElo "2560"]
[BlackElo "2245"]
[Result "1-0"]
[Round "1"]
[TimeControl "180+1"]
[Date "2023.08.15"]
[WhiteClock "0:00:27"]
[BlackClock "0:00:00"]
[Board "184"]

1. d4 {[%clk 0:02:47]}  c6 {[%clk 0:02:59]} 2. e4 {[%clk 0:02:45]}  d5 {[%clk 0:02:59]} 3. Nc3 {[%clk 0:02:43]}  dxe4 {[%clk 0:02:59]} 4. Nxe4 {[%clk 0:02:43]}  Nf6 {[%clk 0:03:00]} 5. Nc3 {[%clk 0:02:42]}  e5 {[%clk 0:02:55]} 6. dxe5 {[%clk 0:02:40]}  Qxd1+ {[%clk 0:02:52]} 7. Kxd1 {[%clk 0:02:40]}  Ng4 {[%clk 0:02:51]} 8. Nh3 {[%clk 0:02:36]}  Nxe5 {[%clk 0:02:50]} 9. f4 {[%clk 0:02:34]}  Bxh3 {[%clk 0:02:42]} 10. gxh3 {[%clk 0:02:31]}  Ng6 {[%clk 0:02:32]} 11. Bc4 {[%clk 0:02:29]}  Nd7 {[%clk 0:02:28]} 12. Re1+ {[%clk 0:02:27]}  Be7 {[%clk 0:02:28]} 13. Be3 {[%clk 0:02:21]}  O-O-O {[%clk 0:02:20]} 14. Kc1 {[%clk 0:02:17]}  Bc5 {[%clk 0:02:05]} 15. Bd2 {[%clk 0:02:15]}  Nh4 {[%clk 0:01:54]} 16. Ne4 {[%clk 0:02:10]}  Nf3 {[%clk 0:01:51]} 17. Re2 {[%clk 0:01:52]}  Nxd2 {[%clk 0:01:50]} 18. Kxd2 {[%clk 0:01:44]}  Rhe8 {[%clk 0:01:22]} 19. Rae1 {[%clk 0:01:40]}  Nf6+ {[%clk 0:01:07]} 20. Bd3 {[%clk 0:01:36]}  Nxe4+ {[%clk 0:01:01]} 21. Rxe4 {[%clk 0:01:36]}  Kd7 {[%clk 0:00:48]} 22. Re5 {[%clk 0:01:22]}  Rxe5 {[%clk 0:00:35]} 23. fxe5 {[%clk 0:01:21]}  Ke6 {[%clk 0:00:30]} 24. c3 {[%clk 0:01:09]}  Rd5 {[%clk 0:00:28]} 25. Rf1 {[%clk 0:01:04]}  Rxe5 {[%clk 0:00:17]} 26. Bc4+ {[%clk 0:01:04]}  Kd6 {[%clk 0:00:18]} 27. Rxf7 {[%clk 0:00:59]}  Re7 {[%clk 0:00:18]} 28. Rf5 {[%clk 0:00:54]}  b5 {[%clk 0:00:18]} 29. Bd3 {[%clk 0:00:54]}  h6 {[%clk 0:00:18]} 30. h4 {[%clk 0:00:43]}  a5 {[%clk 0:00:17]} 31. h5 {[%clk 0:00:42]}  Re5 {[%clk 0:00:17]} 32. Rf3 {[%clk 0:00:35]}  Rxh5 {[%clk 0:00:16]} 33. h3 {[%clk 0:00:35]}  g5 {[%clk 0:00:14]} 34. Bf5 {[%clk 0:00:35]}  Rh4 {[%clk 0:00:13]} 35. Rd3+ {[%clk 0:00:30]}  Ke5 {[%clk 0:00:11]} 36. Bd7 {[%clk 0:00:30]}  Rf4 {[%clk 0:00:05]} 37. Bxc6 {[%clk 0:00:29]}  Rf2+ {[%clk 0:00:03]} 38. Ke1 {[%clk 0:00:29]}  Ke6 {[%clk 0:00:01]} 39. b4 {[%clk 0:00:28]}  a4 {[%clk 0:00:00]} 40. bxc5 {[%clk 0:00:27]} 1-0


[Site "https://www.chess.com"]

[Event "Titled Tuesday Blitz August 15 Early 2023"]
[White "Hajiyev, Kanan"]
[Black "Pax-Pramana"]
[WhiteFideId "13404148"]
[WhiteElo "2550"]
[BlackElo "2228"]
[Result "0-1"]
[Round "1"]
[TimeControl "180+1"]
[Date "2023.08.15"]
[WhiteClock "0:00:04"]
[BlackClock "0:00:23"]
[Board "192"]

1. d4 {[%clk 0:03:00]}  Nf6 {[%clk 0:02:58]} 2. c4 {[%clk 0:03:00]}  e6 {[%clk 0:02:58]} 3. Nf3 {[%clk 0:02:57]}  Bb4+ {[%clk 0:02:57]} 4. Bd2 {[%clk 0:02:57]}  Qe7 {[%clk 0:02:56]} 5. e3 {[%clk 0:02:54]}  O-O {[%clk 0:02:55]} 6. Bd3 {[%clk 0:02:45]}  b6 {[%clk 0:02:46]} 7. O-O {[%clk 0:02:38]}  Bb7 {[%clk 0:02:45]} 8. a3 {[%clk 0:02:33]}  Bxd2 {[%clk 0:02:44]} 9. Nbxd2 {[%clk 0:02:34]}  d6 {[%clk 0:02:41]} 10. Qc2 {[%clk 0:02:31]}  Nbd7 {[%clk 0:02:36]} 11. b4 {[%clk 0:02:22]}  c5 {[%clk 0:02:16]} 12. Rad1 {[%clk 0:02:11]}  a5 {[%clk 0:02:04]} 13. dxc5 {[%clk 0:02:10]}  dxc5 {[%clk 0:01:56]} 14. b5 {[%clk 0:02:04]}  Rad8 {[%clk 0:01:47]} 15. Ne4 {[%clk 0:01:58]}  e5 {[%clk 0:01:44]} 16. Nc3 {[%clk 0:01:49]}  Bxf3 {[%clk 0:01:25]} 17. gxf3 {[%clk 0:01:48]}  Qe6 {[%clk 0:01:25]} 18. Kg2 {[%clk 0:01:33]}  Rfe8 {[%clk 0:01:19]} 19. Ne2 {[%clk 0:01:19]}  g6 {[%clk 0:01:18]} 20. Ng3 {[%clk 0:01:17]}  Nf8 {[%clk 0:01:12]} 21. Be4 {[%clk 0:01:14]}  Nxe4 {[%clk 0:01:06]} 22. fxe4 {[%clk 0:00:58]}  Nd7 {[%clk 0:01:01]} 23. Rd3 {[%clk 0:00:37]}  Nf6 {[%clk 0:00:59]} 24. Rfd1 {[%clk 0:00:38]}  Rxd3 {[%clk 0:00:58]} 25. Qxd3 {[%clk 0:00:39]}  h5 {[%clk 0:00:57]} 26. h3 {[%clk 0:00:33]}  h4 {[%clk 0:00:47]} 27. Ne2 {[%clk 0:00:33]}  Nh7 {[%clk 0:00:46]} 28. Qd7 {[%clk 0:00:20]}  Ng5 {[%clk 0:00:44]} 29. Qxe6 {[%clk 0:00:20]}  Rxe6 {[%clk 0:00:45]} 30. f3 {[%clk 0:00:20]}  f5 {[%clk 0:00:41]} 31. exf5 {[%clk 0:00:18]}  gxf5 {[%clk 0:00:41]} 32. Nc3 {[%clk 0:00:18]}  e4 {[%clk 0:00:37]} 33. f4 {[%clk 0:00:18]}  Nf3 {[%clk 0:00:37]} 34. Rd5 {[%clk 0:00:17]}  Rg6+ {[%clk 0:00:37]} 35. Kf2 {[%clk 0:00:16]}  Ng1 {[%clk 0:00:35]} 36. Rxf5 {[%clk 0:00:16]}  Nxh3+ {[%clk 0:00:36]} 37. Ke2 {[%clk 0:00:12]}  Ng1+ {[%clk 0:00:36]} 38. Ke1 {[%clk 0:00:12]}  h3 {[%clk 0:00:36]} 39. Nxe4 {[%clk 0:00:11]}  h2 {[%clk 0:00:32]} 40. Rh5 {[%clk 0:00:11]}  Kg7 {[%clk 0:00:29]} 41. Kf2 {[%clk 0:00:10]}  Rh6 {[%clk 0:00:28]} 42. Rxh6 {[%clk 0:00:09]}  Kxh6 {[%clk 0:00:29]} 43. Kg2 {[%clk 0:00:10]}  Nf3 {[%clk 0:00:28]} 44. Nf2 {[%clk 0:00:11]}  Ne1+ {[%clk 0:00:28]} 45. Kxh2 {[%clk 0:00:10]}  Nc2 {[%clk 0:00:29]} 46. e4 {[%clk 0:00:09]}  Nxa3 {[%clk 0:00:29]} 47. e5 {[%clk 0:00:09]}  Nxc4 {[%clk 0:00:30]} 48. e6 {[%clk 0:00:07]}  Kg6 {[%clk 0:00:28]} 49. f5+ {[%clk 0:00:06]}  Kxf5 {[%clk 0:00:28]} 50. e7 {[%clk 0:00:07]}  Nd6 {[%clk 0:00:29]} 51. Kg3 {[%clk 0:00:06]}  Ke6 {[%clk 0:00:29]} 52. Ne4 {[%clk 0:00:06]}  Kxe7 {[%clk 0:00:28]} 53. Nc3 {[%clk 0:00:06]}  Ke6 {[%clk 0:00:27]} 54. Kf4 {[%clk 0:00:07]}  Kf6 {[%clk 0:00:26]} 55. Na4 {[%clk 0:00:05]}  Nxb5 {[%clk 0:00:25]} 56. Nxb6 {[%clk 0:00:06]}  Nc3 {[%clk 0:00:23]} 57. Nc4 {[%clk 0:00:04]}  a4 {[%clk 0:00:23]} 58. Ke3 {[%clk 0:00:05]}  a3 {[%clk 0:00:23]} 59. Kd3 {[%clk 0:00:05]}  Nb5 {[%clk 0:00:23]} 60. Kc2 {[%clk 0:00:04]}  Ke6 {[%clk 0:00:21]} 61. Kb3 {[%clk 0:00:05]}  Kd5 {[%clk 0:00:21]} 62. Nxa3 {[%clk 0:00:04]}  Nxa3 {[%clk 0:00:22]} 63. Kxa3 {[%clk 0:00:05]}  Kc4 {[%clk 0:00:19]} 64. Kb2 {[%clk 0:00:05]}  Kd3 {[%clk 0:00:20]} 65. Kc1 {[%clk 0:00:06]}  Kc3 {[%clk 0:00:19]} 66. Kd1 {[%clk 0:00:06]}  Kb2 {[%clk 0:00:19]} 67. Kd2 {[%clk 0:00:07]}  c4 {[%clk 0:00:20]} 68. Ke3 {[%clk 0:00:07]}  c3 {[%clk 0:00:21]} 69. Kd3 {[%clk 0:00:07]}  c2 {[%clk 0:00:22]} 70. Kd4 {[%clk 0:00:04]}  c1=Q {[%clk 0:00:23]} 0-1


[Site "https://www.chess.com"]

[Event "Titled Tuesday Blitz August 15 Early 2023"]
[White "Manukyan, Sargis V."]
[Black "Thiel, Thomas"]
[WhiteFideId "13303465"]
[BlackFideId "4615964"]
[WhiteElo "2550"]
[BlackElo "2225"]
[Result "1/2-1/2"]
[Round "1"]
[TimeControl "180+1"]
[Date "2023.08.15"]
[WhiteClock "0:00:22"]
[BlackClock "0:00:17"]
[Board "194"]

1. d4 {[%clk 0:02:57]}  d5 {[%clk 0:02:59]} 2. c4 {[%clk 0:02:57]}  dxc4 {[%clk 0:03:00]} 3. e3 {[%clk 0:02:57]}  e5 {[%clk 0:02:59]} 4. Bxc4 {[%clk 0:02:57]}  Nc6 {[%clk 0:02:57]} 5. Nf3 {[%clk 0:02:54]}  e4 {[%clk 0:02:57]} 6. Nfd2 {[%clk 0:02:54]}  Qg5 {[%clk 0:02:57]} 7. O-O {[%clk 0:02:50]}  Bh3 {[%clk 0:02:51]} 8. g3 {[%clk 0:02:38]}  Bxf1 {[%clk 0:02:52]} 9. Bxf1 {[%clk 0:02:36]}  f5 {[%clk 0:02:47]} 10. b3 {[%clk 0:02:34]}  O-O-O {[%clk 0:02:45]} 11. Bb2 {[%clk 0:02:35]}  Nf6 {[%clk 0:02:44]} 12. Nc3 {[%clk 0:02:35]}  h5 {[%clk 0:02:38]} 13. h4 {[%clk 0:02:34]}  Qg6 {[%clk 0:02:37]} 14. Ne2 {[%clk 0:02:31]}  Bd6 {[%clk 0:02:34]} 15. Nf4 {[%clk 0:02:29]}  Bxf4 {[%clk 0:02:32]} 16. exf4 {[%clk 0:02:29]}  Nxd4 {[%clk 0:02:27]} 17. Qc1 {[%clk 0:02:26]}  Ng4 {[%clk 0:02:14]} 18. Bxd4 {[%clk 0:02:17]}  Rxd4 {[%clk 0:02:12]} 19. Qc3 {[%clk 0:02:18]}  Rhd8 {[%clk 0:02:08]} 20. Nc4 {[%clk 0:02:17]}  Qf6 {[%clk 0:01:53]} 21. Rc1 {[%clk 0:02:13]}  Rd1 {[%clk 0:01:52]} 22. Qc2 {[%clk 0:01:55]}  Rxc1 {[%clk 0:01:50]} 23. Qxc1 {[%clk 0:01:56]}  Qd4 {[%clk 0:01:47]} 24. Qc2 {[%clk 0:01:34]}  e3 {[%clk 0:01:42]} 25. fxe3 {[%clk 0:01:23]}  Nxe3 {[%clk 0:01:41]} 26. Qf2 {[%clk 0:01:24]}  Nxc4 {[%clk 0:01:39]} 27. Bxc4 {[%clk 0:01:22]}  Qxf2+ {[%clk 0:01:38]} 28. Kxf2 {[%clk 0:01:23]}  g6 {[%clk 0:01:36]} 29. Bf7 {[%clk 0:01:21]}  Rd6 {[%clk 0:01:33]} 30. Ke3 {[%clk 0:01:22]}  Kd7 {[%clk 0:01:32]} 31. Bc4 {[%clk 0:01:18]}  Ke7 {[%clk 0:01:31]} 32. b4 {[%clk 0:01:18]}  Rd1 {[%clk 0:01:29]} 33. Bb3 {[%clk 0:01:16]}  Rg1 {[%clk 0:01:27]} 34. Kf2 {[%clk 0:01:15]}  Rb1 {[%clk 0:01:26]} 35. Ke3 {[%clk 0:01:15]}  Kd6 {[%clk 0:01:20]} 36. Bf7 {[%clk 0:01:10]}  Rxb4 {[%clk 0:01:18]} 37. Bxg6 {[%clk 0:01:09]}  Ke6 {[%clk 0:01:15]} 38. Bxh5 {[%clk 0:01:07]}  Ra4 {[%clk 0:01:13]} 39. Bd1 {[%clk 0:01:00]}  Ra3+ {[%clk 0:01:10]} 40. Bb3+ {[%clk 0:01:00]}  Kf6 {[%clk 0:01:09]} 41. Kd4 {[%clk 0:00:55]}  Ra5 {[%clk 0:01:03]} 42. Bc4 {[%clk 0:00:46]}  b6 {[%clk 0:01:01]} 43. Bb3 {[%clk 0:00:44]}  Rc5 {[%clk 0:01:00]} 44. Bc4 {[%clk 0:00:42]}  a5 {[%clk 0:01:00]} 45. a4 {[%clk 0:00:42]}  Rc6 {[%clk 0:00:58]} 46. Bd5 {[%clk 0:00:37]}  Rd6 {[%clk 0:00:58]} 47. Kc4 {[%clk 0:00:37]}  Rd7 {[%clk 0:00:57]} 48. h5 {[%clk 0:00:29]}  Rg7 {[%clk 0:00:55]} 49. h6 {[%clk 0:00:29]}  Rxg3 {[%clk 0:00:55]} 50. h7 {[%clk 0:00:29]}  Rh3 {[%clk 0:00:55]} 51. Bg8 {[%clk 0:00:30]}  Kg7 {[%clk 0:00:53]} 52. Be6 {[%clk 0:00:29]}  Rxh7 {[%clk 0:00:52]} 53. Bxf5 {[%clk 0:00:28]}  Rh4 {[%clk 0:00:51]} 54. Kb5 {[%clk 0:00:28]}  Rxf4 {[%clk 0:00:51]} 55. Bd7 {[%clk 0:00:28]}  Rb4+ {[%clk 0:00:47]} 56. Kc6 {[%clk 0:00:28]}  Rc4+ {[%clk 0:00:47]} 57. Kb7 {[%clk 0:00:29]}  Rc5 {[%clk 0:00:46]} 58. Bc6 {[%clk 0:00:29]}  Kf6 {[%clk 0:00:46]} 59. Kxc7 {[%clk 0:00:28]}  Ke5 {[%clk 0:00:27]} 60. Kxb6 {[%clk 0:00:27]}  Kd6 {[%clk 0:00:28]} 61. Bb5 {[%clk 0:00:27]}  Rg5 {[%clk 0:00:21]} 62. Kxa5 {[%clk 0:00:25]}  Kc5 {[%clk 0:00:21]} 63. Ka6 {[%clk 0:00:25]}  Kb4 {[%clk 0:00:21]} 64. Kb6 {[%clk 0:00:23]}  Rg6+ {[%clk 0:00:20]} 65. Bc6 {[%clk 0:00:22]}  Rxc6+ {[%clk 0:00:17]} 66. Kxc6 {[%clk 0:00:22]}  Kxa4 {[%clk 0:00:17]} 1/2-1/2


[Site "https://www.chess.com"]

[Event "Titled Tuesday Blitz August 15 Early 2023"]
[White "Sreyas Payyappat"]
[Black "EvgenyBurmakin"]
[WhiteFideId "46674969"]
[WhiteElo "2549"]
[BlackElo "2220"]
[Result "1-0"]
[Round "1"]
[TimeControl "180+1"]
[Date "2023.08.15"]
[WhiteClock "0:01:22"]
[BlackClock "0:00:04"]
[Board "196"]

1. e4 {[%clk 0:03:00]}  c5 {[%clk 0:02:53]} 2. Nf3 {[%clk 0:02:59]}  d6 {[%clk 0:02:47]} 3. d4 {[%clk 0:02:59]}  cxd4 {[%clk 0:02:47]} 4. Nxd4 {[%clk 0:03:00]}  Nf6 {[%clk 0:02:47]} 5. Nc3 {[%clk 0:02:57]}  a6 {[%clk 0:02:46]} 6. h4 {[%clk 0:02:56]}  e6 {[%clk 0:02:31]} 7. g4 {[%clk 0:02:53]}  Nc6 {[%clk 0:02:07]} 8. g5 {[%clk 0:02:50]}  Nd7 {[%clk 0:02:05]} 9. Be3 {[%clk 0:02:41]}  Be7 {[%clk 0:02:00]} 10. f4 {[%clk 0:02:40]}  Nxd4 {[%clk 0:01:49]} 11. Qxd4 {[%clk 0:02:30]}  e5 {[%clk 0:01:49]} 12. Qd2 {[%clk 0:02:29]}  exf4 {[%clk 0:01:46]} 13. Bxf4 {[%clk 0:02:30]}  Ne5 {[%clk 0:01:46]} 14. O-O-O {[%clk 0:02:28]}  Be6 {[%clk 0:01:41]} 15. Nd5 {[%clk 0:02:10]}  Bxd5 {[%clk 0:01:22]} 16. exd5 {[%clk 0:02:11]}  Ng6 {[%clk 0:00:58]} 17. Bd3 {[%clk 0:01:58]}  Nxf4 {[%clk 0:00:52]} 18. Qxf4 {[%clk 0:01:59]}  O-O {[%clk 0:00:52]} 19. Rde1 {[%clk 0:01:56]}  Rc8 {[%clk 0:00:45]} 20. Qe4 {[%clk 0:01:54]}  Bxg5+ {[%clk 0:00:28]} 21. hxg5 {[%clk 0:01:48]}  Qxg5+ {[%clk 0:00:29]} 22. Kb1 {[%clk 0:01:48]}  g6 {[%clk 0:00:26]} 23. Reg1 {[%clk 0:01:45]}  Qd2 {[%clk 0:00:15]} 24. Qh4 {[%clk 0:01:38]}  h6 {[%clk 0:00:09]} 25. Bxg6 {[%clk 0:01:19]}  fxg6 {[%clk 0:00:05]} 26. Rxg6+ {[%clk 0:01:20]}  Kf7 {[%clk 0:00:04]} 27. Qf6+ {[%clk 0:01:20]}  Ke8 {[%clk 0:00:04]} 28. Qe6+ {[%clk 0:01:20]}  Kd8 {[%clk 0:00:04]} 29. Qxd6+ {[%clk 0:01:20]}  Ke8 {[%clk 0:00:04]} 30. Re6+ {[%clk 0:01:21]}  Kf7 {[%clk 0:00:04]} 31. Qe7+ {[%clk 0:01:21]}  Kg8 {[%clk 0:00:04]} 32. Rg6+ {[%clk 0:01:21]}  Kh8 {[%clk 0:00:04]} 33. Qg7# {[%clk 0:01:22]} 1-0


[Site "https://www.chess.com"]